Cogmind - Beta 16 @@@ ROGUE MODE // 2025.11.27 @ 22:09:06 Player: Lazz Result: Destroyed by DL-M82(R) with Subdweller Beam Cannon Performance ------------- Evolutions (0) 0 Regions Visited (3) 600 Robots Destroyed (13) 65 Value Destroyed (434) 434 Prototype IDs (0) 0 Alien Tech Used (0) 0 Bonus (0) 0 TOTAL SCORE: 1099 Bonus ------- None Cogmind --------- Core Integrity 0/250 Matter 285/300 Energy 82/100 System Corruption 0% Temperature Cool (9) Movement Treading (160) Location -10/Subcaves Parts ------- > --- POWER (1) -------- (None) > --- PROPULSION (2) --- Light Treads > --- UTILITY (2) ------ Small Storage Unit > --- WEAPON (2) ------- Small Laser > --- INVENTORY (8) ---- Subdweller Power Source Light Nuclear Core Makeshift Leg Improved Heat Sink Disposable Heat Sink Makeshift Light Armor Plating Light Assault Rifle Peak State ------------ > --- POWER ------------ Subdweller Power Source > --- PROPULSION ------- Light Treads Light Treads > --- UTILITY ---------- Small Storage Unit Structural Scanner > --- WEAPON ----------- Particle Gun Grenade Launcher > --- INVENTORY -------- Subdweller Power Source Light Nuclear Core Makeshift Leg Improved Heat Sink Disposable Heat Sink Makeshift Light Armor Plating Small Laser Light Assault Rifle [Rating: 11] Favorites ----------- Power Light Ion Engine Engine Light Ion Engine Propulsion Light Treads Treads Light Treads Wheel Wheel Utility Small Storage Unit Device Structural Scanner Storage Small Storage Unit Weapon Particle Gun Energy Gun Particle Gun Ballistic Gun Light Assault Rifle Launcher Grenade Launcher Build | -11 -10 -10 -10 ------- Run | Yrd Mat Min Sub Slots Evolved . | . . . . Power . | . . . . Propulsion . | . . . . Utility . | . . . . Weapon . | . . . . Parts Attached 16 | 7 1 5 3 Power 3 | 1 . 1 1 Engine 3 | 1 . 1 1 Core . | . . . . Reactor . | . . . . Propulsion 5 | 3 . 1 1 Treads 3 | 1 . 1 1 Leg . | . . . . Wheel 2 | 2 . . . Hover . | . . . . Flight . | . . . . Utility 2 | 1 . 1 . Device 1 | . . 1 . Storage 1 | 1 . . . Processor . | . . . . Hackware . | . . . . Protection . | . . . . Artifact . | . . . . Weapon 6 | 2 1 2 1 Energy Gun 4 | 2 . 2 . Energy Cannon . | . . . . Ballistic Gun 1 | . 1 . . Ballistic Cannon . | . . . . Launcher 1 | . . . 1 Special Weapon . | . . . . Impact Weapon . | . . . . Slashing Weapon . | . . . . Piercing Weapon . | . . . . Special Melee Weapon . | . . . . Unidentified Prototypes . | . . . . Parts Lost 12 | . 1 5 6 Power 3 | . . 1 2 Propulsion 3 | . . 2 1 Utility 1 | . . . 1 Weapon 5 | . 1 2 2 Highest Loss Streak 5 | . 1 5 5 To Critical Strikes . | . . . . Average Backups 5 | 4 4 4 7 Power 1 | 1 1 1 1 Propulsion 1 | 2 2 . 1 Utility 1 | . . 1 2 Weapon 1 | 1 . . 2 Tool/Special . | . . . . Unused Backups 8 | . . . 8 Power 2 | . . . 2 Propulsion 1 | . . . 1 Utility 4 | . . . 4 Weapon 1 | . . . 1 Tool/Special . | . . . . Average Slot Usage (%) 90 | . 83 85 95 Engine 8 | . 14 4 10 Treads 22 | . . 21 27 Wheel 4 | . 28 4 . Device 12 | . . 12 14 Storage 14 | . 14 14 14 Energy Gun 21 | . 22 23 20 Ballistic Gun 1 | . 4 3 . Launcher 4 | . . . 7 Peak Build Rating 11 | 6 7 9 11 Average Rating 7 | 2 6 6 8 On Entrance 5 | . 6 6 9 Avg Prop Armor Cover (%) . | . . . . Naked Turns . | . . . . Heaviest Build 17 | 11 11 13 17 Greatest Support 40 | 20 20 40 40 Greatest Overweight (x) 1 | 1 . . . Average Overweight (x) . | . . . . Largest Inventory Capacity 8 | 8 8 8 8 Average Capacity 7 | 7 8 8 8 Most Carried 8 | 8 6 7 8 Average Carried 5 | 4 4 4 7 Final Capacity 8 | 8 8 8 8 Final Carried 7 | 4 5 6 7 Class Distribution -------------------- 100% | Mutant Dominant Class ---------------- Mutant | -10/Materials Mutant | -10/Mines Mutant | -10/Subcaves Resources | -11 -10 -10 -10 ----------- Run | Yrd Mat Min Sub Matter Collected 466 | 194 57 73 142 Remotely . | . . . . Salvage Created 413 | . 180 170 63 Parts 24 | . 10 10 4 Haulers Intercepted . | . . . . Recyclers Shooed . | . . . . Parts Field Recycled . | . . . . Retrieved Matter . | . . . . Parts Self-Destructed 6 | . . . 6 Prevented . | . . . . Parts Restored . | . . . . Kills | -11 -10 -10 -10 ------- Run | Yrd Mat Min Sub Combat Hostiles Destroyed 13 | . 4 4 5 Guns 8 | . 4 4 . AOE 5 | . . . 5 Classes Destroyed 3 | . 1 . 2 Swarmer 3 | . . . 3 Grunt 8 | . 4 4 . Subdweller 2 | . . . 2 Best Kill Streak 3 | . 3 1 3 Combat Bots Only 3 | . 3 1 3 Max Kills in Single Turn 3 | . 1 1 3 Gunslinging . | . . . . Exploded 3 | . . . 3 Melee . | . . . . Uniques/NPCs Destroyed . | . . . . Combat | -11 -10 -10 -10 -------- Run | Yrd Mat Min Sub Hostile Shots Fired 84 | . 25 43 16 Missed 19 | . 4 11 4 Hits 65 | . 21 32 12 Projectile 65 | . 21 32 12 Critical Strikes 2 | . . 2 . Damage Taken 1208 | . 260 458 490 Core 252 | . 36 102 114 Absorbed by Shields . | . . . . Core Remaining (%) 100 | 100 . . . Volleys Fired 59 | . 16 27 16 Largest 2 | . 2 2 2 Hottest 105 | . 80 105 105 Shots Fired 93 | . 29 43 21 Gun 80 | . 29 43 8 Cannon . | . . . . Launcher 13 | . . . 13 Special . | . . . . Kinetic 18 | . 8 10 . Thermal 57 | . 16 33 8 Explosive 13 | . . . 13 Electromagnetic 5 | . 5 . . Robot Hit Streak 9 | . 5 9 7 Robot Miss Streak 3 | . 3 3 1 Penetration Max . | . . . . Secondary Targets . | . . . . Shots Hit Robots 55 | . 20 24 11 Core Hits 29 | . 11 10 8 Critical Kills . | . . . . Critical Parts Destroyed . | . . . . Critical Strikes . | . . . . Melee Attacks . | . . . . Impact . | . . . . Slashing . | . . . . Piercing . | . . . . Sneak Attacks . | . . . . Combat Hostiles . | . . . . Follow-up Attacks . | . . . . Damage Inflicted 962 | . 197 285 480 Guns 510 | . 197 284 29 Cannons . | . . . . Explosions 451 | . . . 451 Melee . | . . . . Ramming 1 | . . 1 . Kinetic 117 | . 62 55 . Thermal 355 | . 97 229 29 Explosive 451 | . . . 451 Electromagnetic 38 | . 38 . . Impact . | . . . . Slashing . | . . . . Piercing . | . . . . Highest Corruption . | . . . . Average Corruption . | . . . . Corruption Purged . | . . . . Corruption Blocked . | . . . . Overload Shots . | . . . . Overflow Damage 15 | . . . 15 Projectiles . | . . . . Explosions 15 | . . . 15 Melee . | . . . . Knockbacks . | . . . . Impact . | . . . . Kinetic . | . . . . Secondary . | . . . . Self-Inflicted Damage 206 | . . . 206 Shots 9 | . . . 9 Rammed 1 | . . 1 . Targets Rammed 1 | . . 1 . Kicked . | . . . . Crushed . | . . . . Highest Temperature 357 | . 193 357 . Average Temperature 115 | . 85 136 . Received Heat Transfer 543 | . 150 303 90 Effects 1 | . . 1 . Interference 1 | . . 1 . Siege Activations . | . . . . Martial Activations . | . . . . Shielding Activations . | . . . . Robots Disrupted . | . . . . Combat Hostiles . | . . . . Robots Corrupted . | . . . . Combat Hostiles . | . . . . Parts Fried . | . . . . Impact Corruptions . | . . . . Robots Melted . | . . . . Combat Hostiles . | . . . . Parts Melted 1 | . . 1 . Heat Transferred 821 | . 225 534 62 Parts Sabotaged . | . . . . Parts Stolen . | . . . . Parts Stripped . | . . . . Power Chain Reactions . | . . . . Alert | -11 -10 -10 -10 ------- Run | Yrd Mat Min Sub Maximum Alert Level . | . . . . Low Security (%) 100 | 100 100 100 . Level 1 . | . . . . Level 2 . | . . . . Level 3 . | . . . . Level 4 . | . . . . Level 5 . | . . . . High Security . | . . . . Max Security . | . . . . Peak Influence 70 | . 70 45 . Initial 23 | . . 23 . Average 13 | . 20 14 . Influence Increases 300 | . 100 130 70 Destroy 0b10 Robot/C 220 | . 80 80 60 Destroy Leader 50 | . 20 20 10 Lose Combat Pursuer 30 | . . 30 . Influence Decreases 300 | . 40 165 95 Entered New Map 50 | . . 37 13 Time Decay 207 | . 30 105 72 Lost Part 43 | . 10 23 10 Squads Dispatched . | . . . . Investigation . | . . . . Extermination . | . . . . Reinforcement . | . . . . Assault . | . . . . Garrison . | . . . . Intercept . | . . . . Searches Triggered . | . . . . Construction Impeded . | . . . . Haulers Reinforced . | . . . . Active Scanning Responses . | . . . . Cargo Convoy Interrupts . | . . . . Stealth | -11 -10 -10 -10 --------- Run | Yrd Mat Min Sub Distress Signals 2 | . 2 . . Communications Jammed . | . . . . Distress Signals . | . . . . Times Spotted 18 | . 5 6 7 Peak Tracking Total 3 | . 3 2 3 Tactical Retreats 2 | . . 2 . Traps | -11 -10 -10 -10 ------- Run | Yrd Mat Min Sub Traps Triggered . | . . . . Indirectly . | . . . . Trap Hack Attempts . | . . . . Triggered . | . . . . Disarmed . | . . . . Reprogrammed . | . . . . Reused . | . . . . Traps Extracted . | . . . . Installed . | . . . . Triggered . | . . . . Machines | -11 -10 -10 -10 ---------- Run | Yrd Mat Min Sub Machines Disabled . | . . . . Max in Single Turn . | . . . . Machines Repaired . | . . . . Machines Dismantled . | . . . . Machines Sabotaged . | . . . . Overloaded Fab Kills . | . . . . Hacking | -11 -10 -10 -10 --------- Run | Yrd Mat Min Sub Machines Accessed 2 | . . . 2 Terminals . | . . . . Fabricators . | . . . . Repair Stations . | . . . . Recycling Units . | . . . . Scanalyzers . | . . . . Garrison Access . | . . . . Total Hacks 3 | . . . 3 Successful 3 | . . . 3 Failed . | . . . . Catastrophic . | . . . . Database Lockouts . | . . . . Manual . | . . . . Terminals . | . . . . Fabricators . | . . . . Repair Stations . | . . . . Recycling Units . | . . . . Scanalyzers . | . . . . Garrison Access . | . . . . Terminal Hacks 3 | . . . 3 Record 1 | . . . 1 Open Door 1 | . . . 1 Release Object 1 | . . . 1 Fabricator Hacks . | . . . . Repair Station Hacks . | . . . . Recycling Unit Hacks . | . . . . Scanalyzer . | . . . . Garrison Access Hacks . | . . . . Unauthorized Hacks . | . . . . Terminals . | . . . . Fabricators . | . . . . Repair Stations . | . . . . Recycling Units . | . . . . Scanalyzers . | . . . . Garrison Access . | . . . . Data Cores Recovered . | . . . . Used . | . . . . Hacking Detections . | . . . . Full Trace Events . | . . . . Feedback Events . | . . . . Feedback Blocked . | . . . . Robot Schematics Acquired . | . . . . Robots Built . | . . . . Authchips . | . . . . Time . | . . . . Total Robot Build Rating . | . . . . Part Schematics Acquired . | . . . . Parts Built . | . . . . Authchips . | . . . . Time . | . . . . Total Part Build Rating . | . . . . Part Studies Acquired . | . . . . Parts Repaired . | . . . . Time . | . . . . Parts Recycled . | . . . . Recycled Matter . | . . . . Retrieved Matter . | . . . . Retrieved Components . | . . . . Parts Scanalyzed . | . . . . Part Schematics Acquired . | . . . . Parts Damaged . | . . . . Bothacking | -11 -10 -10 -10 ------------ Run | Yrd Mat Min Sub Used RIF Installer . | . . . . Robots Hacked . | . . . . Non-combat . | . . . . Combat . | . . . . Robot Hacks Applied . | . . . . Relay Couplers Released . | . . . . Fabnet Peak Effective % . | . . . . Robots Rewired . | . . . . Allies Hacked . | . . . . Hacks Repelled . | . . . . Allies | -11 -10 -10 -10 -------- Run | Yrd Mat Min Sub Total Allies . | . . . . Largest Group . | . . . . Highest-Rated Group . | . . . . Highest-Rated Ally . | . . . . Total Orders . | . . . . Ally Attacks . | . . . . Total Damage . | . . . . Kills . | . . . . Allies Corrupted . | . . . . Allies Melted . | . . . . Intel | -11 -10 -10 -10 ------- Run | Yrd Mat Min Sub Active Infowar (turns) 735 | . . 253 482 Structural 735 | . . 253 482 Robot Analysis Total . | . . . . Derelict Logs Recovered 1 | . . 1 . Drone Launches . | . . . . Drone Recoveries . | . . . . Exploration | -11 -10 -10 -10 ------------- Run | Yrd Mat Min Sub Turns Passed 951 | 65 88 314 484 Spaces Moved 529 | 63 37 160 269 Core 34 | 34 . . . Treads 395 | . . 126 269 Legs . | . . . . Wheels 100 | 29 37 34 . Hover . | . . . . Flight . | . . . . Fastest Speed 50 | 50 80 80 160 Average Speed 139 | 78 80 143 160 Slowest Speed 160 | 100 80 160 160 Overloaded Moves . | . . . . Propulsion Burnouts . | . . . . Robots Hopped . | . . . . Potential Cave-ins . | . . . . Cave-ins Triggered . | . . . . Exploration Rate (%) 20 | 4 12 46 20 Regions Visited 3 Branch Regions 2 Pre-discovered Areas . | . . . . Known Exits Taken . | . . . . Unknown Exits Taken 3 | 1 1 1 . Scrap Searched 2 | . . 2 . Spaces Dug . | . . . . Terrain Destroyed 81 | . . . 81 Melee . | . . . . Projectile . | . . . . AOE 81 | . . . 81 Terrain Rammed . | . . . . Walls Destroyed . | . . . . Machines Disabled . | . . . . Actions | -11 -10 -10 -10 --------- Run | Yrd Mat Min Sub Total 651 | 77 67 204 303 Wait 24 | . 12 4 8 Move 526 | 62 36 159 269 Hop . | . . . . Pick Up 21 | 8 2 7 4 Fast Attach 3 | 2 . . 1 Attach 12 | 4 1 6 1 Detach . | . . . . Swap 3 | 1 . . 2 Drop 2 | . . . 2 Fire 59 | . 16 27 16 Melee . | . . . . Ram . | . . . . Kick . | . . . . Crush 1 | . . 1 . Escape Stasis . | . . . . Rewire . | . . . . Trap . | . . . . Miscellaneous . | . . . . Route ------- -11/Scrapyard -10/Materials -10/Mines -10/Subcaves (discovered 1 exit: [*Mat]) History --------- Turn | Location | Event 9 | -11/Scrapyard | Discovered new exit (range 15) 66 | -11/Scrapyard | Entered Materials 107 | -10/Materials | Discovered new exit (range 15) 154 | -10/Materials | Entered Mines 181 | -10/Mines | Learned Materials security intel 243 | -10/Mines | Lost 5 parts (1p2n2w) 315 | -10/Mines | Build established: Mutant 375 | -10/Mines | Core integrity fell below 50% 444 | -10/Mines | Discovered new exit (range 16) 468 | -10/Mines | Entered Subcaves 469 | -10/Subcaves | Approached by a straggling Scientist 494 | -10/Subcaves | Discovered new exit (range 13) 617 | -10/Subcaves | Shifting Twisted Machinery released Sub. Power Source 644 | -10/Subcaves | Shifting Twisted Machinery released Mak. Leg 710 | -10/Subcaves | Disturbed a concealed Subdweller 934 | -10/Subcaves | Core integrity fell below 20% 951 | -10/Subcaves | Ambushed by Subdweller buried in earth 952 | -10/Subcaves | Destroyed by DL-M82(R) with Subdweller Beam Cannon Last Messages --------------- 00845_ K5-X6G(R) destroyed. 00857_ 8M-IVF(u) builds Twisted Machinery. 00859_ Acquired 31 matter. 00862_ Acquired Disposable Heat Sink. 00879_ Acquired 51 matter. 00881_ 8M-IVF(u) builds Twisted Machinery. 00893_ Acquired Sub. Power Source. 00894_ 8M-IVF(u) builds Twisted Machinery. 00895_ Dropped Core Shielding. 00899_ DL-M82(R): "WEHOME!" 00901_ 8M-IVF(u) builds Twisted Machinery. 00903_ Acquired 7 matter. 00906_ Acquired Mak. Light Armor Plating. 00935_ Sub. Power Source destroyed. 00935_ Lgt. Treads destroyed. 00950_ Particle Gun destroyed. 00950_ Structural Scanner destroyed. 00951_ Grenade Launcher destroyed. 00951_ Destroyed Grenade Launcher. 00952_ HV-T70(R): "NOSTUCKSUB!" Map ----- +----------------------------------------------------+ | ?????????????????????????????????????????????????? | | ?????????????????????????????????????????????????? | | ???????????????????????????????????????????????### | | ??????????????????????????????????????????????#### | | ??????????????????????????????????????????????### | | ??????????????????????????????????????????????## | | ??????????????????????????????????????????????## | | ?????????????????????????????????????????????### # | | ?????????????????????????????????????????????### | | ?????????????????????????????????????????????## | | ?????????????????????????????????????????????## | | ?????????????????????????????????????????????#### | | ???????????????????????????????????????????????### | | ???????????????????????????????????????????????### | | ????????????????????????????????????????????????## | | ????????????????????????????????????????????????## | | ??????????????????????????????????????????????#### | | ??????????????????????????????????????????????#### | | ??????????????????????????????????????????????## | | ??????????????????????????????????????????????## | | ?????????????????????? ###????????????????????## | | ?????????????????????### ##### #??????????????##% | | ????????????????????#### ## #####????????????#### | | ????????????????????### ####????????????#### | | ????????????????????## % ##????????????#### | | ????????????????????### @ R ###???????????#### | | ?????????????????????#### R #####?????????## | | ?????????????????????#### ####?????????## | | ???????????????????????###### ############# | | ??????????????????????????### ############### | | ???????????????????????????### ### #### | | ???????????????????????????### ## ### | | ???????????????????????????### ### ### | | ???????????????????????????## ### ## | | ???????????????????????????## ### # | | ???????????????????????????## | | ???????????????????????????### "" | | ???????????????????????????#### "" | | ????????????????????????????### | | ????????????????????????????### #" | | ????????????????????????????## ### """" | | ???????????????????????????? ###" ! | | ????????????????????????# ##### ## | | ????????????????????????## ######### | | ????????????????????????## ???###### | | ????????????????????????## ### ### ?????## ## | | ????????????????????????#############?????## #### | | ????????????????????????????####?####?????## ##### | | ??????????????????????????????????????????## ##??? | | ??????????????????????????????????????????###????? | +----------------------------------------------------+ Best States ------------- Heat Dissipation 25 Energy Generation 15 Energy Capacity 200 Matter Stores 300 Matter Capacity 300 Sight Range 16 Terrain Scan Density 10 Evasion (%) 50 Recoil Reduction 2 Item Schematics ----------------- None Robot Schematics ------------------ None Fabricated ------------ Nothing Repaired ---------- Nothing Studied --------- None Alien Tech Used ----------------- None Achievements -------------- None Challenges ------------ None Game ------ Seed NullBlanketBuckler Manual? 0 Play Time 00:08:16 Cumulative 99.5 hours Start 2025.11.27 @ 22:02:50 End 2025.11.27 @ 22:09:06 Sessions 1 Manual Loads 0 Difficulty Rogue Special Mode None Game No. 143 Rogue 143 Adventurer 0 Explorer 0 Win Type - Total 1 Types 1/0/0/0/0/0/0/0/0/0 Lore% 58 Gallery% 53 Achievement% 40 Wizard Run 0 Options --------- Layout 2 ASCII 0 Keyboard 0 Movement Mouse Keybinds 0 Fullscreen 1 Font 16/SmallcapsGlow Map View 25x24 Zoom Use 98% Tactical HUD 1 Map Filters NONE Filters NONE Steam SD RUN: fcfbfa5c-ce30-4e9b-9a69-860980f8af54